bitfinex/quotes_SOLUSD_20220103
["timestamp","ask_amount","ask_price","bid_price","bid_amount"]
[1641244928208,2.4963779,168.46,168.36,34.67415106]
[1641244929013,8.9074,168.45,168.36,34.67415106]
[1641244929409,9.1674,168.45,168.36,34.67415106]
[1641244931335,9.6674,168.45,168.36,34.67415106]
[1641244932635,9.6674,168.45,168.36,34.41415106]
[1641244934137,9.6674,168.45,168.36,34.67415106]
[1641244934341,9.1674,168.45,168.36,34.67415106]
[1641244940140,9.6674,168.45,168.36,22.8573]
[1641244940341,18.2274,168.45,168.35,25.5452]
[1641244940543,18.2274,168.45,168.28,161.1865]
[1641244940742,1.2488,168.44,168.31,1.2929]
[1641244940944,8.9108,168.38,168.31,1.2929]
[1641244941345,2.2148997,168.37,168.31,4.1160693]
[1641244941546,2.2148997,168.37,168.31,13.0268693]
[1641244941747,53.4367,168.42,168.31,13.0268693]
[1641244941949,55.0174,168.42,168.31,13.2868693]
[1641244942147,25.3148,168.42,168.31,13.2868693]
[1641244942349,8.91,168.39,168.31,13.0268693]
[1641244942549,9.17,168.39,168.31,13.0268693]
[1641244942848,11.83642371,168.39,168.31,13.0268693]
[1641244943649,11.83642371,168.39,168.31,13.2868693]
[1641244948259,8.9095,168.4,168.31,13.2868693]
[1641244948459,75.4872,168.42,168.31,13.2868693]
[1641244948661,75.4872,168.42,168.32,23.6315]
[1641244948881,75.4872,168.42,168.35,8.9085]
[1641244949079,75.4872,168.42,168.35,9.1685]
[1641244949279,11.22205356,168.41,168.35,9.1685]
[1641244950178,11.22205356,168.41,168.35,0.26]
[1641244950579,11.22205356,168.41,168.34,9.1692]
[1641244950979,11.48205356,168.41,168.33,1.2891]
[1641244951183,11.48205356,168.41,168.33,0.26]
[1641244951381,11.98205356,168.41,168.33,0.26]
[1641244951782,11.98205356,168.41,168.32,32.8018]
[1641244952578,11.98205356,168.41,168.32,32.5418]
[1641244953179,11.48205356,168.41,168.32,32.5418]
[1641244953981,11.48205356,168.41,168.32,32.8018]
[1641244954383,11.22205356,168.41,168.32,32.8018]
[1641244954984,11.22205356,168.41,168.32,34.1383]
[1641244960291,8.9091,168.41,168.32,34.1383]
[1641244960493,84.3957,168.42,168.32,34.1383]
[1641244960693,84.6557,168.42,168.32,34.1383]
[1641244961091,84.3957,168.42,168.32,34.1383]
[1641244961295,1.2316,168.44,168.33,1.42669368]
[1641244961492,3.4305215,168.44,168.33,1.68669368]
[1641244961693,3.4305215,168.44,168.39,2.99466937]
[1641244961893,33.0682,168.45,168.39,2.99466937]
[1641244962094,33.0682,168.45,168.39,3.25466937]
[1641244962296,78.197,168.49,168.39,3.25466937]
[1641244962494,78.197,168.49,168.4,24.4151]
[1641244962696,78.197,168.49,168.42,8.905]
[1641244962896,78.197,168.49,168.42,16.389]
[1641244963100,78.197,168.49,168.42,16.649]
[1641244963698,2.0376835,168.5,168.42,16.649]
[1641244964699,2.0376835,168.5,168.42,40.3785]
[1641244967528,2.0376835,168.5,168.42,48.9385]
[1641244970006,2.0376835,168.5,168.42,24.949]
[1641244971910,2.0376835,168.5,168.42,25.209]
[1641244972512,2.0376835,168.5,168.42,24.949]
[1641244974010,2.0376835,168.5,168.42,48.1278]
[1641244974612,2.0376835,168.5,168.42,49.443]
[1641244978912,2.0376835,168.5,168.42,49.183]
[1641244982539,2.0376835,168.5,168.42,49.443]
[1641244991148,2.59307822,168.53,168.42,49.443]
[1641244991348,2.59307822,168.53,168.42,50.86969368]
[1641244993351,1.289,168.54,168.42,50.86969368]
[1641244994451,78.5198,168.55,168.42,50.86969368]
[1641244994655,75.3561,168.59,168.42,50.86969368]
[1641244994852,2.5014,168.6,168.42,50.86969368]
[1641244995452,2.82649585,168.59,168.42,50.86969368]
[1641244995653,2.82649585,168.59,168.42,52.09639368]
[1641244996252,2.82649585,168.59,168.42,168.55587127]
[1641244996452,2.82649585,168.59,168.42,227.98587127]
[1641244996652,78.6868,168.62,168.42,126.55445454]
[1641244996854,78.6868,168.62,168.53,8.8966]
[1641244997053,78.6868,168.62,168.54,22.51606036]
[1641244997552,544.02026344,168.65,168.54,22.51606036]
[1641244997553,519.76826344,168.65,168.54,22.77606036]
[1641244997756,518.09503863,168.65,168.55,12.88798214]
[1641244997958,518.09503863,168.65,168.61,31.34498984]
[1641244998158,518.09503863,168.65,168.61,37.56798984]
[1641244998356,518.09503863,168.65,168.61,37.82798984]
[1641244998758,518.09503863,168.65,168.61,9.42294557]
[1641244998957,518.09503863,168.65,168.63,8.8937]
[1641244999357,72.6451,168.71,168.63,9.1537]
[1641244999560,2.97608877,168.7,168.63,9.1537]
[1641244999764,8.8935,168.72,168.63,9.1537]
[1641244999961,2.0376835,168.73,168.64,29.14869924]
[1641245000163,2.0376835,168.73,168.68,8.8907]
[1641245000361,2.0376835,168.73,168.68,13.9837]
[1641245000562,2.0376835,168.73,168.68,14.2437]
[1641245000860,2.0376835,168.73,168.68,16.7387381]
[1641245002470,2.0376835,168.73,168.68,9.1507]
[1641245003466,2.0376835,168.73,168.68,11.81646897]
[1641245004267,2.0376835,168.73,168.68,9.1507]
[1641245007369,2.0376835,168.73,168.67,8.56]
[1641245007569,2.0376835,168.73,168.67,8.82]
[1641245008369,2.0376835,168.73,168.7,8.8898]
[1641245008572,2.0376835,168.73,168.68,2.80184554]
[1641245008800,2.0376835,168.73,168.68,3.06184554]
[1641245009871,2.0376835,168.73,168.68,9.1504]
[1641245010075,2.0376835,168.73,168.65,8.56]
[1641245010874,0.26,168.73,168.65,8.56]
[1641245011473,3.54453457,168.74,168.65,8.82]
[1641245011873,2.78453457,168.74,168.65,8.82]
[1641245012874,2.78453457,168.74,168.65,17.7123]
[1641245014277,26.1333,168.78,168.65,17.7123]
[1641245014576,26.1333,168.78,168.65,47.47519368]
[1641245014976,26.1333,168.78,168.65,48.74999368]
[1641245015376,2.22605088,168.77,168.65,48.74999368]
[1641245015680,2.48605088,168.77,168.65,47.3233]
[1641245016077,2.22605088,168.77,168.65,47.3233]
[1641245016308,2.22605088,168.77,168.65,48.74999368]
[1641245016778,2.22605088,168.77,168.65,47.3233]
[1641245017779,2.48605088,168.77,168.65,47.3233]
[1641245018577,2.22605088,168.77,168.65,48.74999368]
[1641245022383,2.22605088,168.77,168.65,48.48999368]
[1641245023806,2.22605088,168.77,168.65,48.74999368]
[1641245028187,2.22605088,168.77,168.65,48.48999368]
[1641245028386,2.48605088,168.77,168.65,43.16799368]
[1641245028992,2.48605088,168.77,168.65,17.4523]
[1641245029190,2.98605088,168.77,168.64,31.97005281]
[1641245030089,11.87725088,168.77,168.64,31.97005281]
[1641245030290,1.3415,168.76,168.64,31.97005281]
[1641245030589,1.6015,168.76,168.64,40.86285281]
[1641245030789,2.1015,168.76,168.64,40.86285281]
[1641245031091,1.8415,168.76,168.64,40.86285281]
[1641245031498,1.8415,168.76,168.64,41.12285281]
[1641245032498,2.1015,168.76,168.64,41.12285281]
[1641245033500,1.6015,168.76,168.64,41.12285281]
[1641245033702,1.6015,168.76,168.64,66.23784649]
[1641245033903,1.6015,168.76,168.64,74.79784649]
[1641245034502,1.6015,168.76,168.65,1.3179]
[1641245034705,1.6015,168.76,168.7,8.8896]
[1641245034902,0.26,168.76,168.71,24.44540551]
[1641245035102,2.48605088,168.77,168.71,24.44540551]
[1641245035505,75.2459,168.79,168.71,24.70540551]
[1641245035707,75.7459,168.79,168.71,38.26560551]
[1641245037009,78.53794126,168.79,168.71,38.26560551]
[1641245038007,78.53794126,168.79,168.71,38.00560551]
[1641245038206,78.79794126,168.79,168.71,29.11640551]
[1641245038406,78.79794126,168.79,168.71,24.44540551]
[1641245038607,78.79794126,168.79,168.7,2.38243898]
[1641245039626,87.68834126,168.79,168.7,26.61759048]
[1641245040128,87.42834126,168.79,168.7,35.50739048]
[1641245040327,78.53794126,168.79,168.7,35.76739048]
[1641245041529,78.53794126,168.79,168.7,33.3849515]
[1641245041729,78.53794126,168.79,168.68,8.8906]
[1641245042130,78.53794126,168.79,168.68,9.1506]
[1641245042330,78.79794126,168.79,168.68,9.1506]
[1641245042530,78.79794126,168.79,168.69,3.0136489]
[1641245042732,78.53794126,168.79,168.69,41.26286291]
[1641245042930,78.53794126,168.79,168.69,41.52286291]
[1641245043130,78.53794126,168.79,168.69,42.94955659]
[1641245043330,78.53794126,168.79,168.69,51.50955659]
[1641245043729,78.53794126,168.79,168.74,8.8878]
[1641245043929,1.3302,168.8,168.74,14.1658]
[1641245044131,26.3413,168.82,168.74,14.4258]
[1641245044530,26.6013,168.82,168.74,14.4258]
[1641245044730,1.608,168.82,168.74,14.4258]
[1641245044933,3.83563592,168.82,168.75,11.87122514]
[1641245045133,3.83563592,168.82,168.76,30.19381495]
[1641245045332,2.98763592,168.82,168.76,30.19381495]
[1641245045731,2.72763592,168.82,168.76,30.19381495]
[1641245047039,2.98763592,168.82,168.76,30.19381495]
[1641245051644,11.87613592,168.82,168.76,30.19381495]
[1641245054748,0.5,168.82,168.76,30.19381495]
[1641245054948,0.5,168.84,168.76,30.19381495]
[1641245055350,26.83622481,168.85,168.76,30.19381495]
[1641245055548,26.83622481,168.85,168.76,30.45381495]
[1641245055748,2.52457481,168.84,168.76,30.45381495]
[1641245055949,3.02457481,168.84,168.76,30.45381495]
[1641245056752,3.28457481,168.84,168.76,39.34061495]
[1641245057780,3.28457481,168.84,168.76,39.08061495]
[1641245059981,83.5955,168.86,168.76,39.34061495]
[1641245060286,74.7091,168.86,168.81,8.8837]
[1641245060483,1.3252,168.87,168.81,9.1437]
[1641245060982,2.22942085,168.87,168.81,12.02962425]
[1641245063187,2.22942085,168.87,168.81,19.65062425]
[1641245063388,77.4668,168.91,168.81,19.65062425]
[1641245064388,2.69982443,168.9,168.81,19.65062425]
[1641245064791,2.69982443,168.9,168.81,28.21062425]
[1641245066092,2.69982443,168.9,168.81,52.73902425]
[1641245066692,2.69982443,168.9,168.81,53.99762425]
[1641245067496,1.67322481,168.97,168.82,1.42669368]
[1641245067696,2.0376835,168.96,168.84,29.6016]
[1641245067897,2.5376835,168.96,168.85,23.6591]
[1641245068202,2.5376835,168.96,168.85,23.9191]
[1641245068397,2.94130313,168.95,168.85,25.2507]
[1641245068998,3.44130313,168.95,168.85,25.2507]
[1641245069796,3.44130313,168.95,168.89,8.8797]
[1641245069998,3.44130313,168.95,168.89,9.1397]
[1641245071098,0.5,168.95,168.89,9.1397]
[1641245071499,2.5376835,168.96,168.89,9.1397]
[1641245072199,5.20004329,168.96,168.89,9.1397]
[1641245072400,5.20004329,168.96,168.9,28.33193924]
[1641245072606,2.0376835,168.96,168.9,37.47123924]
[1641245073000,2.0376835,168.96,168.9,37.44885792]
[1641245073401,1.5376835,168.96,168.9,37.44885792]
[1641245077404,1.5376835,168.96,168.9,42.41785792]
[1641245081415,1.5376835,168.96,168.9,42.15785792]
[1641245082108,1.5376835,168.96,168.9,37.18885792]
[1641245084913,1.5376835,168.96,168.9,37.44885792]
[1641245085815,1.0376835,168.96,168.9,37.44885792]
[1641245086413,1.0376835,168.96,168.91,8.56]
[1641245086614,1.0376835,168.96,168.93,8.8769]
[1641245086812,1.0376835,168.96,168.94,25.54612374]
[1641245087012,1.0376835,168.96,168.94,25.80612374]
[1641245087213,1.0376835,168.96,168.94,28.31021215]
[1641245088015,1.0376835,168.96,168.94,28.05021215]
[1641245088216,1.0376835,168.96,168.95,8.8767]
[1641245088613,1.0376835,168.96,168.94,28.05021215]
[1641245089113,1.0376835,168.96,168.94,25.54612374]
[1641245089513,1.0376835,168.96,168.94,25.80612374]
[1641245089913,1.0376835,168.96,168.94,34.68362374]
[1641245090920,2.56542548,169.0,168.94,34.68362374]
[1641245091113,23.5861,169.03,168.94,34.68362374]
[1641245091346,24.0861,169.03,168.94,34.68362374]
[1641245091943,26.24476419,169.03,168.94,35.95472374]
[1641245092143,2.65866419,169.03,168.94,43.00672374]
[1641245093045,2.91866419,169.03,168.94,35.95472374]
[1641245096345,2.65866419,169.03,168.94,35.95472374]
[1641245098248,2.15866419,169.03,168.94,10.4086]
[1641245098450,11.29616419,169.03,168.94,0.26]
[1641245098846,11.29616419,169.03,168.93,9.6381]
[1641245100351,11.79616419,169.03,168.93,9.6381]
[1641245101955,11.79616419,169.03,168.93,34.36792236]
[1641245102854,11.53616419,169.03,168.93,34.36792236]
[1641245103854,11.53616419,169.03,168.93,9.6381]
[1641245104153,11.79616419,169.03,168.93,9.6381]
[1641245104752,11.79616419,169.03,168.93,10.9422]
[1641245105355,11.79616419,169.03,168.93,35.8066]
[1641245105555,11.03616419,169.03,168.93,35.8066]
[1641245105755,2.15866419,169.03,168.93,35.8066]
[1641245107756,104.8138,169.05,168.93,35.8066]
[1641245108859,2.26762069,169.04,168.93,35.8066]
[1641245109359,2.52762069,169.04,168.93,35.8066]
[1641245110456,1.3568,169.03,168.93,35.8066]
[1641245111959,3.90948795,169.03,168.93,35.8066]
[1641245113058,1.3568,169.03,168.93,35.8066]
[1641245113560,1.3568,169.03,168.93,35.5466]
[1641245114964,106.37047229,169.05,168.93,37.23329368]
[1641245115265,106.37047229,169.05,168.94,8.56]
[1641245115464,79.0013,169.05,168.99,8.8735]
[1641245115668,79.0013,169.05,169.0,28.99893271]
[1641245115865,79.0013,169.05,169.0,29.49893271]
[1641245116067,79.0013,169.05,169.0,29.75893271]
[1641245116365,1.2392,169.07,169.0,29.75893271]
[1641245116568,4.08715412,169.07,169.01,3.04980145]
[1641245116865,4.58715412,169.07,169.01,3.04980145]
[1641245117066,4.58715412,169.07,169.01,3.30980145]
[1641245117266,4.08715412,169.07,169.01,3.30980145]
[1641245117466,4.08715412,169.07,169.01,3.80980145]
[1641245117666,4.08715412,169.07,169.01,12.68370145]
[1641245118266,0.5,169.07,169.01,12.68370145]
[1641245118467,26.5187,169.1,169.01,9.6339]
[1641245119169,26.5187,169.1,169.01,15.0719]
[1641245119170,26.0187,169.1,169.01,15.0719]
[1641245119367,28.26187234,169.1,169.02,2.48097297]
[1641245119567,28.26187234,169.1,169.05,8.8718]
[1641245119771,2.24317234,169.1,169.05,37.72420488]
[1641245119969,77.3813,169.11,169.05,37.98420488]
[1641245120173,1.67322481,169.14,169.05,38.48420488]
[1641245120370,1.67322481,169.14,169.06,24.6853]
[1641245120572,1.67322481,169.14,169.09,8.8693]
[1641245120771,1.67322481,169.16,169.09,32.27648989]
[1641245120972,1.67322481,169.16,169.09,32.53648989]
[1641245121170,1.67322481,169.16,169.1,2.60522853]
[1641245121373,1.67322481,169.16,169.1,9.87122853]
[1641245121573,1.67322481,169.16,169.1,28.98702221]
[1641245121776,1.67322481,169.21,169.1,29.48702221]
[1641245122072,2.31669593,169.2,169.1,53.84002221]
[1641245122272,1.67322481,169.21,169.1,53.84002221]
[1641245123374,2.99085466,169.23,169.1,53.84002221]
[1641245125299,2.99085466,169.23,169.1,52.41332853]
[1641245126104,1.3583463,169.26,169.1,52.41332853]
[1641245126300,1.3583463,169.26,169.1,53.84002221]
[1641245126501,1.8583463,169.26,169.1,53.84002221]
[1641245127205,2.80130546,169.25,169.1,53.84002221]
[1641245127602,2.80130546,169.25,169.1,55.13802221]
[1641245129003,3.56130546,169.25,169.11,465.86829695]
[1641245129204,93.7,169.24,169.11,483.29639695]
[1641245129406,94.2,169.24,169.11,483.29639695]
[1641245129603,94.46,169.24,169.11,483.29639695]
[1641245129804,94.46,169.24,169.11,474.73639695]
[1641245130205,8.868,169.21,169.11,483.29639695]
[1641245130407,93.7,169.24,169.11,484.05639695]
[1641245130607,93.96,169.24,169.11,484.05639695]
[1641245130807,0.26,169.24,169.11,484.05639695]
[1641245131006,3.30130546,169.25,169.11,484.05639695]
[1641245131421,8.8666,169.23,169.11,484.05639695]
[1641245132509,9.1266,169.23,169.11,484.05639695]
[1641245132808,9.1266,169.23,169.11,483.79639695]
[1641245133009,8.8666,169.23,169.11,483.79639695]
[1641245133811,8.8661,169.24,169.11,483.79639695]
[1641245134011,8.8661,169.24,169.11,490.22039695]
[1641245135012,86.07170546,169.25,169.11,490.22039695]
[1641245135512,86.07170546,169.25,169.17,8.8653]
[1641245135711,84.75050546,169.25,169.18,27.67165956]
[1641245135912,75.88490546,169.25,169.18,27.67165956]
[1641245136115,72.5836,169.25,169.18,27.93165956]
[1641245136513,72.5836,169.25,169.18,28.43165956]
[1641245137114,2.66698265,169.24,169.18,28.43165956]
[1641245137513,2.66698265,169.24,169.18,37.29615956]
[1641245138323,2.66698265,169.24,169.18,45.85615956]
[1641245139112,2.66698265,169.24,169.18,45.35615956]
[1641245139518,2.66698265,169.24,169.18,42.94004612]
[1641245140515,2.66698265,169.24,169.18,34.38004612]
[1641245140716,2.66698265,169.24,169.18,34.88004612]
[1641245140914,1.0376835,169.23,169.18,34.88004612]
[1641245141214,1.0376835,169.23,169.18,43.44004612]
[1641245142715,1.0376835,169.23,169.18,44.8667398]
[1641245143118,1.0376835,169.23,169.18,43.44004612]
[1641245143719,1.0376835,169.23,169.18,43.18004612]
[1641245144121,1.0376835,169.23,169.18,42.68004612]
[1641245144322,1.0376835,169.23,169.18,43.18004612]
[1641245144721,1.0376835,169.23,169.18,42.68004612]
[1641245145122,1.0376835,169.23,169.18,42.94004612]
[1641245145523,1.0376835,169.23,169.18,44.3667398]
[1641245145923,1.0376835,169.23,169.18,44.8667398]
[1641245146122,1.0376835,169.23,169.18,48.39904612]
[1641245147924,1.0376835,169.23,169.18,43.44004612]
[1641245148725,1.0376835,169.23,169.18,43.18004612]
[1641245148925,1.0376835,169.23,169.18,17.4245]
[1641245149126,1.0376835,169.23,169.15,1.3394]
[1641245149326,1.0376835,169.23,169.16,8.8655]
[1641245150628,1.0376835,169.23,169.17,23.65211426]
[1641245150828,1.0376835,169.23,169.18,8.8647]
[1641245151027,1.0376835,169.23,169.18,9.1247]
[1641245151653,1.0376835,169.23,169.18,14.6807]
[1641245152254,1.3583463,169.26,169.18,15.1807]
[1641245158064,0.8583463,169.26,169.18,15.1807]
[1641245159065,0.8583463,169.26,169.18,39.616]
[1641245165476,0.8583463,169.26,169.18,41.04269368]
[1641245166876,0.8583463,169.26,169.18,42.38879368]
[1641245167674,0.8583463,169.26,169.18,40.9621]
[1641245168078,0.8583463,169.26,169.18,40.7021]
[1641245168975,9.7226463,169.26,169.18,40.7021]
[1641245170097,9.7226463,169.26,169.18,40.9621]
[1641245170579,0.8583463,169.26,169.18,40.9621]
[1641245171183,0.8583463,169.26,169.18,14.4207]
[1641245171377,0.8583463,169.26,169.16,8.8658]
[1641245172179,0.8583463,169.26,169.16,32.46070213]
[1641245172580,9.7227463,169.26,169.16,32.46070213]
[1641245172979,9.7227463,169.26,169.16,32.72070213]
[1641245173886,9.7227463,169.26,169.16,33.22070213]
[1641245174084,9.9827463,169.26,169.16,33.22070213]
[1641245174485,9.7227463,169.26,169.16,33.22070213]
[1641245174985,0.8583463,169.26,169.16,33.22070213]
[1641245175185,0.8583463,169.26,169.16,34.49730213]
[1641245175587,0.8583463,169.26,169.16,33.22070213]
[1641245176086,0.8583463,169.26,169.16,32.72070213]
[1641245176687,9.7228463,169.26,169.16,32.72070213]
[1641245176888,9.9828463,169.26,169.16,32.72070213]
[1641245177092,9.9828463,169.26,169.16,8.8658]
[1641245177291,18.5428463,169.26,169.15,2.96229206]
[1641245177489,19.0428463,169.26,169.15,2.96229206]
[1641245177907,20.46953998,169.26,169.15,2.96229206]
[1641245178508,19.0428463,169.26,169.15,2.96229206]
[1641245178911,20.71195701,169.26,169.15,2.96229206]
[1641245179508,19.0428463,169.26,169.15,2.96229206]
[1641245180813,19.0428463,169.26,169.15,1.92460856]
[1641245181011,2.76153554,169.25,169.15,1.92460856]
[1641245181213,8.8679,169.2,169.12,8.8681]
[1641245181414,8.8679,169.2,169.12,9.3681]
[1641245181611,8.8679,169.2,169.12,8.8681]
[1641245182011,8.8679,169.2,169.12,9.1281]
[1641245182212,2.79346738,169.19,169.12,11.47557275]
[1641245182413,11.66156738,169.19,169.12,11.47557275]
[1641245182614,2.79346738,169.19,169.12,11.47557275]
[1641245183013,1.2852,169.22,169.12,11.97557275]
[1641245183214,1.2852,169.22,169.14,8.8671]
[1641245183418,8.8675,169.2,169.13,23.0876]
[1641245183817,8.8675,169.2,169.13,0.26]
[1641245184017,11.75885352,169.2,169.13,0.26]
[1641245184217,2.89135352,169.2,169.13,8.8676]
[1641245184717,2.89135352,169.2,169.13,9.1276]
[1641245185621,11.75885352,169.2,169.13,9.1276]
[1641245187620,12.25885352,169.2,169.13,9.1276]
[1641245188222,11.75885352,169.2,169.13,9.1276]
[1641245190322,11.75885352,169.2,169.13,0.26]
[1641245190523,12.01885352,169.2,169.12,2.34747275]
[1641245191826,12.51885352,169.2,169.12,2.34747275]
[1641245194926,12.01885352,169.2,169.12,2.34747275]
[1641245195224,12.01885352,169.2,169.1,8.8692]
[1641245195425,12.01885352,169.2,169.1,9.6292]
[1641245196028,12.01885352,169.2,169.11,2.82630686]
[1641245196227,13.33535352,169.2,169.11,2.82630686]
[1641245196426,13.33535352,169.2,169.11,3.32630686]
[1641245197430,13.07535352,169.2,169.11,12.19500686]
[1641245197628,13.07535352,169.2,169.11,12.45500686]
[1641245197828,8.8675,169.2,169.11,12.45500686]
[1641245198130,1.3319,169.24,169.11,12.45500686]
[1641245198329,1.3319,169.24,169.13,24.54791648]
[1641245198529,1.3319,169.24,169.14,24.7929]
[1641245198929,2.29963914,169.23,169.15,2.1912714]
[1641245199329,2.29963914,169.23,169.15,2.4512714]
[1641245199530,2.29963914,169.23,169.15,2.1912714]
[1641245199732,10.66623914,169.23,169.15,11.0578714]
[1641245200128,10.66623914,169.23,169.15,2.1912714]
[1641245200331,11.16623914,169.23,169.15,2.1912714]
[1641245200531,11.42623914,169.23,169.15,2.1912714]
[1641245201334,10.92623914,169.23,169.15,2.1912714]
[1641245201531,11.42623914,169.23,169.15,2.1912714]
[1641245201733,10.92623914,169.23,169.15,2.1912714]
[1641245202536,10.66623914,169.23,169.15,2.1912714]
[1641245204035,1.79963914,169.23,169.15,2.1912714]
[1641245204236,1.79963914,169.23,169.15,2.4512714]
[1641245204440,1.79963914,169.23,169.15,2.9512714]
[1641245204938,2.05963914,169.23,169.15,11.0578714]
[1641245205138,2.05963914,169.23,169.15,2.1912714]
[1641245206740,10.92613914,169.23,169.15,2.1912714]
[1641245207440,10.92613914,169.23,169.14,32.2125]
[1641245208241,10.92613914,169.23,169.13,8.8676]
[1641245208441,11.42613914,169.23,169.11,2.65013075]
[1641245208844,11.42613914,169.23,169.11,3.41013075]
[1641245209342,11.42613914,169.23,169.12,26.37283087]
[1641245209545,11.42613914,169.23,169.12,26.63283087]
[1641245209741,11.42613914,169.23,169.13,8.8676]
[1641245209944,11.42613914,169.23,169.13,9.1276]
[1641245210643,11.42613914,169.23,169.14,2.44474683]
[1641245212648,11.16613914,169.23,169.14,25.16014683]
[1641245212848,11.16613914,169.23,169.14,34.28714683]
[1641245214652,19.72613914,169.23,169.14,34.28714683]
[1641245215153,19.72613914,169.23,169.14,34.78714683]
[1641245216154,10.66613914,169.23,169.14,34.78714683]
[1641245217758,10.66613914,169.23,169.14,32.3424]
[1641245218759,10.66613914,169.23,169.14,34.92228123]
[1641245219492,1.79963914,169.23,169.14,34.92228123]
[1641245221396,1.79963914,169.23,169.15,1.3026]
[1641245221594,77.236,169.26,169.16,27.53909172]
[1641245221797,64.20701071,169.31,169.16,27.53909172]
[1641245221993,8.56,169.3,169.17,24.8029]
[1641245222394,8.56,169.3,169.17,25.5629]
[1641245222624,26.57420233,169.29,169.19,8.8644]
[1641245222794,35.13420233,169.29,169.18,4.36232687]
[1641245222994,35.89420233,169.29,169.18,4.86232687]
[1641245223794,35.89420233,169.29,169.18,4.36232687]
[1641245224597,8.865,169.24,169.18,4.36232687]
[1641245224798,8.865,169.24,169.18,1.3166]
[1641245224995,9.125,169.24,169.18,1.3166]
[1641245226099,2.52673066,169.23,169.18,1.3166]
[1641245226296,11.39213066,169.23,169.18,1.3166]
[1641245226697,11.39213066,169.23,169.17,36.57531139]
[1641245226901,11.39213066,169.23,169.17,33.6684]
[1641245227098,11.39213066,169.23,169.17,24.8029]
[1641245227298,2.52673066,169.23,169.17,25.0629]
[1641245227499,2.52673066,169.23,169.17,25.5629]
[1641245227900,2.52673066,169.23,169.18,2.46445805]
[1641245228099,29.5493,169.28,169.18,11.32915805]
[1641245228300,29.5493,169.28,169.19,23.4463]
[1641245228502,30.3093,169.28,169.19,23.4463]
[1641245228900,8.8647,169.24,169.19,23.4463]
[1641245229099,11.45222652,169.24,169.19,23.4463]
[1641245232008,8.8647,169.24,169.19,23.4463]
[1641245235509,8.8647,169.24,169.15,32.2452]
[1641245235711,8.8647,169.24,169.15,23.3792]
[1641245235909,9.3647,169.24,169.15,23.3792]
[1641245236112,8.8647,169.24,169.15,23.3792]
[1641245236510,9.6247,169.24,169.16,2.85898839]
[1641245236711,9.1247,169.24,169.16,2.85898839]
[1641245237510,9.6247,169.24,169.16,2.85898839]
[1641245238133,9.6247,169.24,169.16,4.08618839]
[1641245238532,9.1247,169.24,169.16,4.08618839]
[1641245240536,8.8647,169.24,169.16,4.08618839]
[1641245240739,8.8647,169.24,169.16,9.39918839]
[1641245241139,8.8647,169.24,169.16,18.76498839]
[1641245241341,8.8642,169.25,169.16,18.76498839]
[1641245243542,11.87217573,169.26,169.16,20.19168207]
[1641245243839,11.87217573,169.26,169.2,8.8636]
[1641245244043,11.87217573,169.26,169.21,2.71959354]
[1641245244443,8.8638,169.26,169.21,2.71959354]
[1641245245449,8.8633,169.27,169.21,2.71959354]
[1641245246250,8.8633,169.27,169.21,11.58269354]
[1641245246849,8.8627,169.29,169.21,11.84269354]
[1641245247051,1.66911071,169.34,169.22,25.52109368]
[1641245247252,1.66911071,169.34,169.23,8.56]
[1641245247455,1.66911071,169.34,169.28,31.85438553]
[1641245247655,1.66911071,169.34,169.28,36.86938553]
[1641245247852,1.66911071,169.36,169.28,37.62938553]
[1641245248056,1.16911071,169.36,169.29,1.42669368]
[1641245248452,1.16911071,169.36,169.32,8.8574]
[1641245248654,1.16911071,169.36,169.33,2.3220727]
[1641245249055,0.93956405,169.37,169.33,2.5820727]
[1641245249450,0.93956405,169.37,169.33,11.4385727]
[1641245250352,0.32301439,169.37,169.33,11.4385727]
[1641245252553,0.32301439,169.37,169.33,9.1165]
[1641245252759,0.32301439,169.37,169.33,0.26]
[1641245252957,0.32301439,169.37,169.32,9.1174]
[1641245253364,0.32301439,169.37,169.32,8.8574]
[1641245253659,2.81822047,169.37,169.32,8.8574]
[1641245254160,0.32301439,169.37,169.32,8.8574]
[1641245254764,0.32301439,169.37,169.32,9.1174]
[1641245255164,0.32301439,169.37,169.32,8.8574]
[1641245255367,0.32301439,169.37,169.31,2.29437263]
[1641245256066,0.32301439,169.37,169.31,2.55437263]
[1641245256483,0.32301439,169.37,169.31,3.05437263]
[1641245256683,0.32301439,169.37,169.31,27.49017263]
[1641245257084,0.32301439,169.37,169.31,36.34797263]
[1641245262186,0.32301439,169.37,169.31,37.65367263]
[1641245262387,0.32301439,169.37,169.31,37.39367263]